fUST/lending_fUST_20240321
["ID","MTS","AMOUNT","RATE_DAILY","PERIOD"]
[319834507,1710988241062,-627.56,0.00060273,31]
[319834509,1710988241071,-500.0,0.00060273,31]
[319834511,1710988241081,-500.0,0.00060273,31]
[319834513,1710988241090,-500.0,0.00060273,31]
[319834516,1710988241100,-500.0,0.00060273,31]
[319834517,1710988241109,-6676.92,0.00060273,31]
[319834528,1710988241195,-876.67,0.00060273,31]
[319834530,1710988241205,-1409.72,0.00060273,31]
[319834532,1710988241213,-500.0,0.00060273,31]
[319834534,1710988241222,-499.14203532,0.00060273,31]
[319834536,1710988241231,-2951.39,0.00060273,31]
[319834538,1710988241240,-500.0,0.00060273,31]
[319834540,1710988241249,-500.0,0.00060273,31]
[319834542,1710988241258,-3958.29,0.00060273,31]
[319834544,1710988241267,-1815.68,0.00060273,31]
[319834546,1710988241276,-1528.67,0.00060273,31]
[319834548,1710988241285,-3476.99,0.00060273,31]
[319834549,1710988241295,-500.0,0.00060273,31]
[319834551,1710988241306,-500.0,0.00060273,31]
[319834553,1710988241315,-3355.36,0.00060273,31]
[319834555,1710988241324,-500.0,0.00060273,31]
[319834557,1710988241333,-1736.35,0.00060273,31]
[319834559,1710988241342,-500.0,0.00060273,31]
[319834561,1710988241351,-5243.97,0.00060273,31]
[319834563,1710988241359,-500.0,0.00060273,31]
[319834565,1710988241369,-500.0,0.00060273,120]
[319834567,1710988241379,-500.0,0.00060273,31]
[319834569,1710988241389,-500.0,0.00060273,31]
[319834571,1710988241399,-500.0,0.00060273,31]
[319834573,1710988241408,-503.59,0.00060273,31]
[319834575,1710988241417,-500.0,0.00060273,31]
[319834577,1710988241426,-1171.0,0.00060273,31]
[319834579,1710988241435,-500.0,0.00060273,31]
[319834581,1710988241445,-863.45,0.00060273,31]
[319834583,1710988241455,-500.0,0.00060273,120]
[319834584,1710988241465,-242.092343,0.00060273,120]
[319834586,1710988241474,-242.092343,0.00060273,120]
[319834588,1710988241483,-2133.89,0.00060273,31]
[319834590,1710988241493,-231.10429317,0.00060273,31]
[319834592,1710988241503,-500.0,0.00060273,31]
[319834594,1710988241512,-522.89,0.00060273,31]
[319834596,1710988241521,-500.0,0.00060273,31]
[319834598,1710988241530,-947.75,0.00060273,31]
[319834600,1710988241539,-503.7,0.00060273,31]
[319834602,1710988241548,-500.0,0.00060273,120]
[319834604,1710988241558,-500.0,0.00060273,31]
[319834606,1710988241566,-500.0,0.00063013,31]
[319834608,1710988241575,-500.0,0.00063013,31]
[319834610,1710988241584,-492.27463437,0.00063013,31]
[319834612,1710988241593,-250.0,0.00063013,31]
[319834614,1710988241603,-500.0,0.00063013,31]
[319834616,1710988241612,-151.0,0.00063013,120]
[319834618,1710988241621,-294.469423,0.00063013,120]
[319834620,1710988241630,-1103.85,0.00063013,31]
[319834622,1710988241639,-500.0,0.00063013,31]
[319834624,1710988241649,-500.0,0.00063013,31]
[319834626,1710988241658,-659.84,0.00063013,31]
[319834628,1710988241668,-500.0,0.00063013,31]
[319834630,1710988241676,-627.56,0.00063013,31]
[319834632,1710988241686,-500.0,0.00063013,31]
[319834634,1710988241695,-500.0,0.00063013,31]
[319834636,1710988241704,-500.0,0.00063013,31]
[319834638,1710988241714,-500.0,0.00063013,31]
[319834640,1710988241722,-3489.60687659,0.00063013,31]
[319835193,1710988246545,-500.0,0.00054794,31]
[319835194,1710988246556,-500.0,0.00057534,31]
[319835196,1710988246567,-500.0,0.00060273,31]
[319835198,1710988246580,-8203.42261829,0.00063012,7]
[319835201,1710988246601,-3187.31312341,0.00063013,31]
[319835203,1710988246611,-876.67,0.00063013,31]
[319835205,1710988246621,-1409.72,0.00063013,31]
[319835207,1710988246631,-500.0,0.00063013,31]
[319835209,1710988246640,-2951.39,0.00063013,31]
[319835211,1710988246649,-500.0,0.00063013,31]
[319835213,1710988246660,-3958.29,0.00063013,31]
[319835215,1710988246669,-1815.68,0.00063013,31]
[319835217,1710988246679,-1528.67,0.00063013,31]
[319835219,1710988246689,-3476.99,0.00063013,31]
[319835221,1710988246699,-500.0,0.00063013,31]
[319835223,1710988246710,-500.0,0.00063013,31]
[319835225,1710988246719,-3355.36,0.00063013,31]
[319835227,1710988246729,-500.0,0.00063013,31]
[319835229,1710988246738,-1736.35,0.00063013,31]
[319835231,1710988246748,-252.36219256,0.00063013,31]
[319835233,1710988246759,-5243.97,0.00063013,31]
[319835235,1710988246769,-500.0,0.00063013,31]
[319835237,1710988246778,-500.0,0.00063013,120]
[319835239,1710988246787,-500.0,0.00063013,31]
[319835241,1710988246798,-503.42702599,0.00063013,31]
[319835243,1710988246807,-500.0,0.00063013,31]
[319835245,1710988246817,-503.59,0.00063013,31]
[319835247,1710988246828,-500.0,0.00063013,31]
[319835249,1710988246837,-1171.0,0.00063013,31]
[319835251,1710988246848,-500.0,0.00063013,31]
[319835253,1710988246858,-863.45,0.00063013,31]
[319835255,1710988246868,-500.0,0.00063013,120]
[319835257,1710988246877,-242.092343,0.00063013,120]
[319835258,1710988246886,-242.092343,0.00063013,120]
[319835260,1710988246897,-2133.89,0.00063013,31]
[319835262,1710988246907,-242.092343,0.00063013,120]
[319835264,1710988246916,-242.092343,0.00063013,120]
[319835266,1710988246925,-500.0,0.00063013,31]
[319835268,1710988246935,-522.89,0.00063013,31]
[319835270,1710988246945,-500.0,0.00063013,31]
[319835272,1710988246955,-947.75,0.00063013,31]
[319835274,1710988246965,-503.7,0.00063013,31]
[319835276,1710988246975,-500.0,0.00063013,120]
[319835279,1710988246987,-500.0,0.00063013,31]
[319835281,1710988246996,-500.0,0.00063013,31]
[319835282,1710988247005,-210.51063616,0.00065751,7]
[319835284,1710988247015,-180.98881659,0.00065751,7]
[319835286,1710988247024,-165.93181549,0.00065751,7]
[319835289,1710988247034,-202.03647067,0.00065751,7]
[319835290,1710988247044,-269.65828487,0.00065751,2]
[319835292,1710988247053,-264.87952772,0.00065751,2]
[319835295,1710988247063,-154.84515485,0.00065753,120]
[319835296,1710988247073,-500.0,0.00065753,31]
[319835299,1710988247084,-376.61253395,0.00065753,31]
[319835301,1710988247093,-151.0,0.00065753,120]
[319835303,1710988247102,-1103.85,0.00065753,31]
[319835304,1710988247112,-500.0,0.00065753,31]
[319835307,1710988247122,-485.5112055,0.00065753,31]
[319835309,1710988247131,-659.84,0.00065753,31]
[319835310,1710988247140,-500.0,0.00065753,31]
[319835312,1710988247149,-627.56,0.00065753,31]
[319835314,1710988247160,-500.0,0.00065753,31]
[319835316,1710988247170,-500.0,0.00065753,31]
[319835318,1710988247179,-500.0,0.00065753,31]
[319835320,1710988247190,-500.0,0.00065753,31]
[319835322,1710988247199,-6676.92,0.00065753,31]
[319835324,1710988247208,-876.67,0.00065753,31]
[319835326,1710988247218,-1409.72,0.00065753,31]
[319835328,1710988247227,-500.0,0.00065753,31]
[319835330,1710988247236,-2951.39,0.00065753,31]
[319835332,1710988247245,-500.0,0.00065753,31]
[319835334,1710988247255,-3958.29,0.00065753,31]
[319835336,1710988247267,-1815.68,0.00065753,31]
[319835338,1710988247279,-1528.67,0.00065753,31]
[319835340,1710988247288,-3476.99,0.00065753,31]
[319835342,1710988247297,-500.0,0.00065753,31]
[319835344,1710988247306,-500.0,0.00065753,31]
[319835347,1710988247317,-3355.36,0.00065753,31]
[319835349,1710988247327,-415.48670884,0.00065753,31]
[319835351,1710988247336,-1736.35,0.00065753,31]
[319835353,1710988247345,-5243.97,0.00065753,31]
[319835355,1710988247355,-500.0,0.00065753,31]
[319835357,1710988247364,-500.0,0.00065753,120]
[319835359,1710988247373,-500.0,0.00065753,31]
[319835361,1710988247383,-500.0,0.00065753,2]
[319835363,1710988247392,-500.0,0.00065753,31]
[319835365,1710988247401,-503.59,0.00065753,31]
[319835367,1710988247412,-500.0,0.00065753,31]
[319835369,1710988247421,-1171.0,0.00065753,31]
[319835371,1710988247431,-500.0,0.00065753,31]
[319835373,1710988247440,-863.45,0.00065753,31]
[319835375,1710988247449,-500.0,0.00065753,120]
[319835377,1710988247460,-242.092343,0.00065753,120]
[319835379,1710988247470,-2133.89,0.00065753,31]
[319835381,1710988247478,-242.092343,0.00065753,120]
[319835383,1710988247488,-500.0,0.00065753,31]
[319835385,1710988247497,-500.0,0.00065753,31]
[319835386,1710988247506,-522.89,0.00065753,31]
[319835389,1710988247516,-947.75,0.00065753,31]
[319835391,1710988247526,-503.7,0.00065753,31]
[319835392,1710988247536,-500.0,0.00065753,120]
[319835394,1710988247545,-500.0,0.00065753,31]
[319835397,1710988247556,-500.0,0.00065753,31]
[319835399,1710988247565,-50032.79450851,0.0006588,120]
[319835401,1710988247574,-151.0,0.0006588,120]
[319835403,1710988247584,-242.092343,0.0006588,120]
[319835405,1710988247594,-242.092343,0.0006588,120]
[319835407,1710988247603,-10079.699,0.00068,50]
[319835408,1710988247613,-500.0,0.00068493,31]
[319835411,1710988247624,-500.0,0.00068493,120]
[319835413,1710988247634,-151.0,0.00068493,120]
[319835415,1710988247643,-1103.85,0.00068493,31]
[319835417,1710988247652,-500.0,0.00068493,31]
[319835419,1710988247664,-659.84,0.00068493,31]
[319835420,1710988247674,-500.0,0.00068493,31]
[319835423,1710988247684,-627.56,0.00068493,31]
[319835425,1710988247693,-500.0,0.00068493,31]
[319835427,1710988247703,-627.49478328,0.00068493,31]
[319835429,1710988247713,-500.0,0.00068493,31]
[319835431,1710988247722,-500.0,0.00068493,31]
[319835432,1710988247731,-6676.92,0.00068493,31]
[319835434,1710988247740,-876.67,0.00068493,31]
[319835437,1710988247750,-1409.72,0.00068493,31]
[319835439,1710988247759,-500.0,0.00068493,31]
[319835441,1710988247769,-2951.39,0.00068493,31]
[319835443,1710988247779,-500.0,0.00068493,31]
[319835445,1710988247787,-3958.29,0.00068493,31]
[319835447,1710988247796,-1815.68,0.00068493,31]
[319835448,1710988247806,-1528.67,0.00068493,31]
[319835451,1710988247815,-3476.99,0.00068493,31]
[319835452,1710988247825,-500.0,0.00068493,31]
[319835454,1710988247834,-500.84502312,0.00068493,31]
[319835456,1710988247844,-3355.36,0.00068493,31]
[319835467,1710988247927,-1736.35,0.00068493,31]
[319835469,1710988247938,-5243.97,0.00068493,31]
[319835471,1710988247948,-500.0,0.00068493,31]
[319835473,1710988247958,-500.0,0.00068493,120]
[319835475,1710988247967,-544.99894201,0.00068493,31]
[319835477,1710988247977,-500.0,0.00068493,31]
[319835479,1710988247990,-503.59,0.00068493,31]
[319835481,1710988248011,-500.0,0.00068493,31]
[319835483,1710988248020,-1171.0,0.00068493,31]
[319835485,1710988248030,-500.0,0.00068493,31]
[319835487,1710988248039,-863.45,0.00068493,31]
[319835489,1710988248048,-500.0,0.00068493,120]
[319835491,1710988248057,-242.092343,0.00068493,120]
[319835493,1710988248066,-2133.89,0.00068493,31]
[319835494,1710988248075,-242.092343,0.00068493,120]
[319835496,1710988248084,-500.0,0.00068493,31]
[319835498,1710988248094,-500.0,0.00068493,31]
[319835501,1710988248103,-522.89,0.00068493,31]
[319835503,1710988248112,-947.75,0.00068493,31]
[319835504,1710988248121,-503.7,0.00068493,31]
[319835506,1710988248130,-500.0,0.00068493,120]
[319835508,1710988248139,-500.0,0.00068493,31]
[319835510,1710988248149,-1999.08,0.00068493,120]
[319835512,1710988248159,-500.0,0.00068493,31]
[319835515,1710988248169,-257.032211,0.00069,30]
[319835517,1710988248178,-2000.0,0.00069502,120]
[319835519,1710988248187,-253.48772208,0.00069585,120]
[319835521,1710988248196,-500.0,0.00069863,120]
[319835523,1710988248205,-151.0,0.0007,120]
[319835524,1710988248214,-1405.06048656,0.0007,120]
[319835525,1710988248223,-150.0,0.0007,120]
[319835526,1710988248232,-30000.0,0.0007,120]
[319835527,1710988248241,-242.092343,0.0007,120]
[319835528,1710988248250,-242.092343,0.0007,120]
[319835529,1710988248259,-165.754134,0.00070651,120]
[319835530,1710988248268,-187.425062,0.00070651,120]
[319835531,1710988248277,-184.816262,0.00070651,120]
[319835532,1710988248286,-150.70331571,0.00070999,120]
[319835533,1710988248295,-500.457258,0.00071232,31]
[319835534,1710988248304,-500.0,0.00071232,120]
[319835535,1710988248313,-1103.85,0.00071232,31]
[319835536,1710988248334,-500.0,0.00071232,31]
[319835537,1710988248343,-659.84,0.00071232,31]
[319835538,1710988248353,-500.0,0.00071232,31]
[319835539,1710988248363,-627.56,0.00071232,31]
[319835540,1710988248373,-500.0,0.00071232,31]
[319835541,1710988248383,-500.0,0.00071232,31]
[319835542,1710988248393,-500.0,0.00071232,31]
[319835543,1710988248403,-6676.92,0.00071232,31]
[319835544,1710988248412,-876.67,0.00071232,31]
[319835545,1710988248422,-1409.72,0.00071232,31]
[319835546,1710988248431,-500.0,0.00071232,31]
[319835547,1710988248441,-2951.39,0.00071232,31]
[319835548,1710988248451,-500.0,0.00071232,31]
[319835549,1710988248463,-3958.29,0.00071232,31]
[319835550,1710988248472,-1815.68,0.00071232,31]
[319835551,1710988248482,-1528.67,0.00071232,31]
[319835552,1710988248491,-3476.99,0.00071232,31]
[319835553,1710988248502,-500.0,0.00071232,31]
[319835554,1710988248511,-3355.36,0.00071232,31]
[319835555,1710988248520,-1736.35,0.00071232,31]
[319835556,1710988248530,-5243.97,0.00071232,31]
[319835557,1710988248541,-500.0,0.00071232,31]
[319835558,1710988248551,-500.0,0.00071232,120]
[319835559,1710988248561,-242.70849288,0.00071232,31]
[319835560,1710988248570,-503.59,0.00071232,31]
[319835561,1710988248579,-500.0,0.00071232,31]
[319835562,1710988248589,-1171.0,0.00071232,31]
[319835563,1710988248598,-485.92936761,0.00071232,31]
[319835564,1710988248607,-863.45,0.00071232,31]
[319835565,1710988248617,-500.0,0.00071232,120]
[319835566,1710988248626,-242.092343,0.00071232,120]
[319835567,1710988248636,-2133.89,0.00071232,31]
[319835568,1710988248645,-242.092347,0.00071232,120]
[319835569,1710988248656,-500.0,0.00071232,31]
[319835570,1710988248666,-500.0,0.00071232,31]
[319835572,1710988248675,-522.89,0.00071232,31]
[319835574,1710988248685,-947.75,0.00071232,31]
[319835576,1710988248694,-503.7,0.00071232,31]
[319835577,1710988248703,-500.0,0.00071232,120]
[319835578,1710988248713,-500.0,0.00071232,31]
[319835579,1710988248723,-500.0,0.00071232,31]
[319835580,1710988248733,-151.0,0.00071342,120]
[319835582,1710988248743,-187.425062,0.00072417,120]
[319835584,1710988248752,-184.816262,0.00072417,120]
[319835586,1710988248762,-500.0,0.00072602,120]
[319835588,1710988248773,-151.0,0.00072685,120]
[319835590,1710988248783,-500.0,0.00073972,120]
[319835592,1710988248792,-151.0,0.00073972,120]
[319835594,1710988248802,-1103.85,0.00073972,31]
[319835596,1710988248812,-500.0,0.00073972,31]
[319835598,1710988248822,-659.84,0.00073972,31]
[319835600,1710988248831,-500.0,0.00073972,31]
[319835602,1710988248841,-627.56,0.00073972,31]
[319835604,1710988248851,-500.0,0.00073972,31]
[319835606,1710988248860,-500.0,0.00073972,31]
[319835608,1710988248870,-500.0,0.00073972,31]
[319835610,1710988248879,-6676.92,0.00073972,31]
[319835612,1710988248889,-876.67,0.00073972,31]
[319835614,1710988248899,-1409.72,0.00073972,31]
[319835616,1710988248909,-500.0,0.00073972,31]
[319835618,1710988248918,-2951.39,0.00073972,31]
[319835620,1710988248927,-500.0,0.00073972,31]
[319835622,1710988248936,-2126.43569635,0.00073972,31]
[319835630,1710988249008,-1831.85430365,0.00073972,31]
[319835632,1710988249018,-1815.68,0.00073972,31]
[319835634,1710988249027,-1528.67,0.00073972,31]
[319835636,1710988249037,-3476.99,0.00073972,31]
[319835638,1710988249047,-500.0,0.00073972,31]
[319835640,1710988249056,-3355.36,0.00073972,31]
[319835642,1710988249065,-1736.35,0.00073972,31]
[319835644,1710988249074,-5243.97,0.00073972,31]
[319835646,1710988249083,-500.0,0.00073972,31]
[319835648,1710988249092,-86.70246635,0.00073972,120]
[319835650,1710988249103,-413.29753365,0.00073972,120]
[319835652,1710988249112,-503.59,0.00073972,31]
[319835654,1710988249121,-500.0,0.00073972,31]
[319835656,1710988249130,-1171.0,0.00073972,31]
[319835658,1710988249139,-863.45,0.00073972,31]
[319835660,1710988249148,-500.0,0.00073972,120]
[319835661,1710988249158,-2133.89,0.00073972,31]
[319835663,1710988249167,-500.0,0.00073972,31]
[319835665,1710988249177,-500.0,0.00073972,31]
[319835667,1710988249186,-522.89,0.00073972,31]
[319835669,1710988249195,-947.75,0.00073972,31]
[319835671,1710988249204,-503.7,0.00073972,31]
[319835673,1710988249213,-500.0,0.00073972,120]
[319835675,1710988249222,-500.0,0.00073972,31]
[319835677,1710988249231,-500.0,0.00073972,31]
[319835679,1710988249241,-151.0,0.00074027,120]
[319835681,1710988249250,-187.425062,0.00074183,120]
[319835683,1710988249260,-184.816262,0.00074183,120]
[319835685,1710988249269,-4472.20681226,0.000748,120]
[319835687,1710988249279,-1000.0,0.00075,120]
[319835689,1710988249288,-30330.0,0.00075,120]
[319835691,1710988249298,-500.0,0.00075342,120]
[319835693,1710988249307,-151.0,0.0007537,120]
[319835695,1710988249317,-20000.0,0.00076,120]
[319835697,1710988249326,-6600.0,0.000767,7]
[319835699,1710988249335,-500.0,0.00076712,120]
[319835701,1710988249345,-151.0,0.00076712,120]
[319835703,1710988249354,-1103.85,0.00076712,31]
[319835705,1710988249363,-500.0,0.00076712,31]
[319835707,1710988249372,-659.84,0.00076712,31]
[319835709,1710988249381,-500.0,0.00076712,31]
[319835711,1710988249390,-627.56,0.00076712,31]
[319835713,1710988249399,-475.22547882,0.00076712,31]
[319835715,1710988249411,-332.24007116,0.00076712,31]
[319835717,1710988249421,-500.0,0.00076712,31]
[319835719,1710988249430,-6676.92,0.00076712,31]
[319835720,1710988249441,-876.67,0.00076712,31]
[319835723,1710988249453,-1409.72,0.00076712,31]
[319835725,1710988249463,-500.0,0.00076712,31]
[319835726,1710988249472,-2951.39,0.00076712,31]
[319835728,1710988249482,-177.76568152,0.00076712,31]
[319835730,1710988249492,-3958.29,0.00076712,31]
[319835731,1710988249501,-1815.68,0.00076712,31]
[319835732,1710988249511,-1528.67,0.00076712,31]
[319835733,1710988249520,-3476.99,0.00076712,31]
[319835734,1710988249529,-500.0,0.00076712,31]
[319835735,1710988249542,-3355.36,0.00076712,31]
[319835736,1710988249551,-1736.35,0.00076712,31]
[319835737,1710988249561,-5243.97,0.00076712,31]
[319835738,1710988249571,-500.0,0.00076712,31]
[319835739,1710988249580,-500.0,0.00076712,120]
[319835740,1710988249589,-503.59,0.00076712,31]
[319835741,1710988249599,-500.0,0.00076712,31]
[319835743,1710988249608,-1171.0,0.00076712,31]
[319835745,1710988249617,-863.45,0.00076712,31]
[319835747,1710988249626,-500.0,0.00076712,120]
[319835749,1710988249635,-2133.89,0.00076712,31]
[319835751,1710988249644,-500.0,0.00076712,31]
[319835753,1710988249653,-500.0,0.00076712,31]
[319835755,1710988249666,-522.89,0.00076712,31]
[319835757,1710988249676,-947.75,0.00076712,31]
[319835759,1710988249685,-503.7,0.00076712,31]
[319835760,1710988249694,-500.0,0.00076712,120]
[319835761,1710988249704,-500.0,0.00076712,31]
[319835767,1710988249784,-500.0,0.00076712,31]
[319835768,1710988249804,-151.0,0.00076712,120]
[319835769,1710988249814,-8222.33,0.0007689,120]
[319835770,1710988249823,-15448.80243859,0.00077,120]
[319837028,1710989191097,-7825.07922665,0.00051799,2]
[319837096,1710989438566,-182.94958545,0.00049999,2]
[319837098,1710989438575,-1831.31791447,0.0005,30]
[319837100,1710989438586,-3168.68208553,0.0005,30]
[319837102,1710989438595,-228.4993931,0.0005179,120]
[319837104,1710989438605,-2692.42938724,0.00051799,2]
[319837150,1710989439030,-500.0,0.00051799,2]
[319837876,1710989446617,-3592.61643129,0.00051799,2]
[319837878,1710989446627,-504.8514703,0.00051802,2]
[319837880,1710989446637,-21609.04655841,0.00051802,2]
[319837882,1710989446649,-3290.95344159,0.00051802,2]
[319837884,1710989446658,-360.94402592,0.00051898,4]
[319837886,1710989446667,-155.0,0.000519,2]
[319837887,1710989446675,-500.0,0.00052372,120]
[319837888,1710989446685,-1000.0,0.000528,2]
[319837890,1710989446694,-5349.82362477,0.00052845,5]
[319837892,1710989446704,-715.87832202,0.00052899,4]
[319837893,1710989446714,-406.35212851,0.00052899,120]
[319837895,1710989446723,-881.07,0.00052899,120]
[319837897,1710989446732,-1844.61,0.00052899,120]
[319837898,1710989446741,-500.0,0.00052899,120]
[319837901,1710989446750,-2473.93,0.00052899,120]
[319837904,1710989446759,-500.0,0.00052899,120]
[319837906,1710989446768,-500.0,0.00052899,120]
[319837907,1710989446777,-315.321312,0.00052899,120]
[319837909,1710989446787,-500.0,0.00052899,120]
[319837911,1710989446797,-500.0,0.00052899,120]
[319837914,1710989446807,-500.21335483,0.00052899,120]
[319837916,1710989446816,-500.0,0.00052899,120]
[319837919,1710989446826,-500.0,0.00052899,120]
[319837922,1710989446834,-500.0,0.00052899,120]
[319837925,1710989446845,-500.0,0.00052899,120]
[319837928,1710989446854,-500.0,0.00052899,120]
[319837931,1710989446864,-500.0,0.00052899,120]
[319837934,1710989446873,-502.41358346,0.00052899,120]
[319837937,1710989446883,-501.58457301,0.00052899,120]
[319837940,1710989446895,-2173.12,0.00052899,120]
[319837943,1710989446904,-3539.37,0.00052899,90]
[319837945,1710989446913,-1024.89,0.00052899,120]
[319837947,1710989446922,-500.0,0.00052899,120]
[319837949,1710989446931,-500.0,0.00052899,120]
[319837951,1710989446940,-501.12864734,0.00052899,120]
[319837953,1710989446949,-1085.22,0.00052899,120]
[319837955,1710989446957,-731.87,0.00052899,120]
[319837956,1710989446968,-2097.1,0.00052899,120]
[319837958,1710989446977,-500.0,0.00052899,120]
[319837961,1710989446987,-500.0,0.00052899,120]
[319837962,1710989446996,-500.0,0.00052899,120]
[319837964,1710989447006,-500.0,0.00052899,120]
[319837967,1710989447018,-1333.68,0.00052899,120]
[319837969,1710989447026,-582.82,0.00052899,120]
[319837971,1710989447035,-592.34,0.00052899,120]
[319837973,1710989447044,-240.0,0.00052899,120]
[319837975,1710989447053,-500.0,0.00052899,120]
[319837977,1710989447062,-500.0,0.00052899,120]
[319837979,1710989447071,-500.0,0.00052899,120]
[319837980,1710989447081,-955.58,0.00052899,120]
[319837982,1710989447090,-500.0,0.00052899,120]
[319837984,1710989447099,-740.22,0.00052899,120]
[319837988,1710989447169,-500.0,0.00052899,120]
[319837989,1710989447193,-500.0,0.00052899,120]
[319837990,1710989447202,-500.0,0.00052899,120]
[319837991,1710989447211,-1134.8,0.00052899,120]
[319837992,1710989447220,-500.0,0.00052899,120]
[319837993,1710989447229,-482.55421717,0.00052899,120]
[319839832,1710989674716,3127.75558592,0.00021,7]
[319839833,1710989795365,1000.0,0.0003088,120]
[319839835,1710990567184,-153.18985941,0.000349,60]
[319839836,1710990567206,-1618.79515077,0.00035,7]
[319839837,1710990567227,-3860.90269045,0.00035,2]
[319839838,1710990567247,-4968.96466326,0.0004,20]
[319839839,1710990567269,-154.84515485,0.00049974,2]
[319839840,1710990567289,-214.0220665,0.00049975,2]
[319839841,1710990567309,-18263.99045862,0.00050994,2]
[319839913,1710990637880,-6636.00954138,0.00050994,2]
[319839915,1710990637889,-746.60549397,0.00051799,4]
[319839917,1710990637898,-155.0,0.000518,2]
[319839919,1710990637907,-1000.0,0.000527,2]
[319839921,1710990637917,-119.75844377,0.00052798,2]
[319840060,1710990645897,-35.08671108,0.00052798,2]
[319840061,1710990645908,-174.15091222,0.00052799,120]
[319840062,1710990645920,-120.73363029,0.00052799,120]
[319840063,1710990645932,-253.19,0.00052799,120]
[319840071,1710991745373,-1499.0,0.00051661,120]
[319840072,1710991745395,-482.00791615,0.00051662,2]
[319840073,1710991745418,-154.84515485,0.00051662,2]
[319840074,1710991745441,-1499.0,0.00051662,120]
[319840075,1710991745465,-1499.0,0.00051663,120]
[319840076,1710991745492,-1499.0,0.00051664,120]
[319840077,1710991745515,-1499.0,0.00051665,120]
[319840078,1710991745538,-1499.0,0.00051666,120]
[319840079,1710991745578,-1499.0,0.00051667,120]
[319840080,1710991745610,-24900.0,0.00051678,2]
[319840081,1710991745637,-155.0,0.000518,2]
[319840082,1710991745663,-10000.0,0.000525,45]
[319840083,1710991745693,-237.56283004,0.000527,120]
[319840084,1710991745718,-1000.0,0.000527,2]
[319840085,1710991745742,-1499.0,0.00052789,120]
[319840086,1710991745767,-1425.87849959,0.00052794,4]
[319840087,1710991745800,-880.22312598,0.00052795,4]
[319840088,1710991745825,-262.35665096,0.00052798,120]
[319840089,1710991745849,-187.5384845,0.00052798,2]
[319840090,1710991745875,-1956.84789488,0.00052798,4]
[319840091,1710991745899,-1083.67520015,0.00052798,4]
[319840092,1710991745924,-170.33664032,0.00052798,4]
[319840093,1710991746094,-748.56889485,0.00052798,4]
[319840094,1710991746119,-155.59443363,0.00052798,4]
[319840095,1710991746140,-1097.60906143,0.00052798,4]
[319840096,1710991746160,-155.80068588,0.00052798,4]
[319840097,1710991746179,-332.89510471,0.00052798,4]
[319840098,1710991746199,-551.16066515,0.00052798,4]
[319840099,1710991746219,-500.0,0.00052798,120]
[319840100,1710991746242,-4290.02887706,0.00052799,61]
[319840101,1710991746263,-500.0,0.00052799,120]
[319840102,1710991746283,-315.44544123,0.00052799,2]
[319840103,1710991746306,-500.87592396,0.00052799,120]
[319840104,1710991746330,-500.0,0.00052799,120]
[319840105,1710991746350,-833.31,0.00052799,120]
[319840106,1710991746371,-500.0,0.00052799,120]
[319840107,1710991746393,-500.0,0.00052799,120]
[319840108,1710991746416,-634.17227469,0.00052799,120]